Cogmind - Beta 11 X8 @@@ ROGUE MODE // 2021.11.12 @ 23:20:07 Player: raddakar Result: Destroyed by G-67 Veteran with Plasma Rifle Performance ------------- Evolutions (5) 2500 Regions Visited (12) 2400 Robots Destroyed (58) 290 Value Destroyed (1504) 1504 Prototype IDs (18) 360 Alien Tech Used (0) 0 Bonus (760) 760 TOTAL SCORE: 7814 Bonus ------- High Alert Combat Kills 415 Follower Combat Kills 45 Met Data Miner 300 Cogmind --------- Core Integrity 0/1000 Matter 120/300 Energy 21/100 System Corruption 1% Temperature Cool (0) Movement Core (50) Location -5/Factory Parts ------- > --- POWER (1) -------- (None) > --- PROPULSION (4) --- (None) > --- UTILITY (8) ------ Improved Signal Interpreter Hacking Suite > --- WEAPON (4) ------- (None) > --- INVENTORY (5) ---- Coolant Injector Force Rifle Force Rifle Force Rifle Peak State ------------ > --- POWER ------------ Micro Nuclear Core > --- PROPULSION ------- Medium Treads Armored Huge Wheel Cooled VTOL Module > --- UTILITY ---------- Medium Storage Unit Advanced Visual Processing Unit Improved Signal Interpreter Target Analyzer Improved Focal Shield Hacking Suite Hacking Suite > --- WEAPON ----------- Heavy Assault Rifle Gauss Rifle > --- INVENTORY -------- Cesium-ion Thruster Cooled VTOL Module Cooled VTOL Module Cooled VTOL Module Coolant Injector Heart of Steel [Rating: 53] Favorites ----------- Power Improved Ion Engine Engine Improved Ion Engine Power Core Micro Nuclear Core Propulsion Light Treads Treads Light Treads Leg Aluminum Leg Wheel Armored Huge Wheel Flight Unit Cooled VTOL Module Utility Medium Armor Plating Device Improved Focal Shield Storage Small Storage Unit Processor Advanced Visual Processing Unit Hackware Hacking Suite Protection Medium Armor Plating Weapon Light Assault Rifle Energy Gun Improved EM Shotgun Energy Cannon Ion Cannon Ballistic Gun Light Assault Rifle Ballistic Cannon Improved Light Cannon Launcher Mini Grenade Launcher Special Weapon Mining Laser Build | -11 -10 -10 -9 -9 -9 -7 -7 -7 -7 -6 -6 -5 ------- Run | Scr Mat Min Mat Sto Rec Fac Low Low Dat Pro Fac Fac Slots Evolved 10 | . . . 2 . . 4 . . . . 2 2 Power . | . . . . . . . . . . . . . Propulsion 2 | . . . . . . 2 . . . . . . Utility 6 | . . . 2 . . 1 . . . . 2 1 Weapon 2 | . . . . . . 1 . . . . . 1 Parts Attached 102 | . . . 1 41 1 31 6 . . 1 . 21 Power 10 | . . . . 6 . 1 1 . . 1 . 1 Engine 8 | . . . . 6 . 1 1 . . . . . Core 2 | . . . . . . . . . . 1 . 1 Reactor . | . . . . . . . . . . . . . Propulsion 37 | . . . . 7 . 14 4 . . . . 12 Treads 18 | . . . . 6 . 7 . . . . . 5 Leg 1 | . . . . 1 . . . . . . . . Wheel 3 | . . . . . . 2 . . . . . 1 Hover . | . . . . . . . . . . . . . Flight 15 | . . . . . . 5 4 . . . . 6 Utility 26 | . . . . 16 1 7 . . . . . 2 Device 2 | . . . . . . 1 . . . . . 1 Storage 4 | . . . . 3 . 1 . . . . . . Processor 3 | . . . . . . 3 . . . . . . Hackware 2 | . . . . . 1 . . . . . . 1 Protection 15 | . . . . 13 . 2 . . . . . . Artifact . | . . . . . . . . . . . . . Weapon 29 | . . . 1 12 . 9 1 . . . . 6 Energy Gun 9 | . . . . 4 . 3 1 . . . . 1 Energy Cannon 1 | . . . . . . 1 . . . . . . Ballistic Gun 15 | . . . . 7 . 3 . . . . . 5 Ballistic Cannon 1 | . . . . 1 . . . . . . . . Launcher 2 | . . . . . . 2 . . . . . . Special Weapon 1 | . . . 1 . . . . . . . . . Impact Weapon . | . . . . . . . . . . . . . Slashing Weapon . | . . . . . . . . . . . . . Piercing Weapon . | . . . . . . . . . . . . . Special Melee Weapon . | . . . . . . . . . . . . . Unidentified Prototypes 3 | . . . . 2 . 1 . . . . . . Corrupted Parts 5 | . . . . 2 . 2 . . . . . 1 System Corruption 9 | . . . . 4 . 4 . . . . . 1 Parts Lost 30 | . . . . . . 8 . . . . . 22 Power 3 | . . . . . . 1 . . . . . 2 Propulsion 11 | . . . . . . 1 . . . . . 10 Utility 5 | . . . . . . 1 . . . . . 4 Weapon 11 | . . . . . . 5 . . . . . 6 Highest Loss Streak 22 | . . . . . . 3 . . . . . 22 Average Slot Usage (%) 88 | . 85 85 66 95 100 81 82 76 76 76 66 51 Engine 8 | . 14 14 11 11 11 7 7 7 7 2 . . Treads 14 | . . . . 18 22 12 . . . . . 6 Leg 2 | . 28 28 22 3 . . . . . . . . Wheel 1 | . . . . . . 7 . . . . . 1 Flight 4 | . . . . . . 1 27 30 30 30 26 5 Storage 10 | . 14 14 11 13 11 7 7 7 7 7 6 3 Processor 4 | . . . . . . 5 23 23 23 23 20 13 Hackware 3 | . . . . . 6 7 7 7 7 7 6 7 Protection 17 | . . . . 27 26 8 . . . . . . Energy Gun 3 | . 14 14 7 6 . 3 . . . . . . Ballistic Gun 9 | . 14 14 11 12 11 9 . . . . . 4 Ballistic Cannon 3 | . . . . 3 11 . . . . . . . Naked Turns . | . . . . . . . . . . . . . Heaviest Build 43 | 11 11 11 11 39 38 43 20 20 20 20 16 27 Greatest Support 112 | 20 20 20 20 40 40 80 20 20 20 20 20 112 Greatest Overweight (x) 1 | . . . . 1 . . . . . . . . Average Overweight (x) . | . . . . . . . . . . . . . Largest Inventory Capacity 10 | . 8 8 8 8 8 10 10 10 10 10 10 10 Average Capacity 8 | . 8 8 8 8 8 9 10 10 10 10 10 8 Most Carried 10 | . 8 8 8 8 8 10 10 10 10 10 10 10 Average Carried 7 | . 7 8 7 7 7 7 8 9 10 10 10 7 Final Capacity 10 | 8 8 8 8 8 8 10 10 10 10 10 10 5 Final Carried 10 | 6 8 8 8 8 7 10 10 10 10 10 10 4 Class Distribution -------------------- 70% | Mutant 10% | Scavenger-Sprinter 7% | Scavenger-Tank 5% | Sprinter Dominant Class ---------------- Mutant | -10/Materials Mutant | -10/Mines Mutant | -9/Materials Mutant | -9/Storage Mutant | -9/Recycling Mutant | -7/Factory Sprinter | -7/Lower Caves Scavenger-Sprinter | -7/Lower Caves Scavenger-Sprinter | -7/Data Miner Scavenger-Sprinter | -6/Proximity Caves Scavenger-Sprinter | -6/Factory Mutant | -5/Factory Resources | -11 -10 -10 -9 -9 -9 -7 -7 -7 -7 -6 -6 -5 ----------- Run | Scr Mat Min Mat Sto Rec Fac Low Low Dat Pro Fac Fac Matter Collected 1613 | 200 2 . . 534 171 490 . 49 . 109 . 58 Remotely . | . . . . . . . . . . . . . Salvage Created 1955 | . 48 . . 1174 95 557 . . . . . 81 Parts 122 | . 4 . . 79 4 31 . . . . . 4 Haulers Intercepted 5 | . . . . 4 . 1 . . . . . . Recyclers Shooed 1 | . . . . 1 . . . . . . . . Parts Field Recycled . | . . . . . . . . . . . . . Retrieved Matter . | . . . . . . . . . . . . . Parts Self-Destructed 6 | . . . . . . . . 2 . 4 . . Prevented . | . . . . . . . . . . . . . Kills | -11 -10 -10 -9 -9 -9 -7 -7 -7 -7 -6 -6 -5 ------- Run | Scr Mat Min Mat Sto Rec Fac Low Low Dat Pro Fac Fac Combat Hostiles Destroyed 36 | . 1 . . 19 1 12 . . . . . 3 Guns 29 | . 1 . . 19 . 6 . . . . . 3 Cannons 1 | . . . . . 1 . . . . . . . AOE 6 | . . . . . . 6 . . . . . . Classes Destroyed 11 | . 1 . . 6 1 3 . . . . . . Worker 7 | . . . . 4 . 3 . . . . . . Builder 3 | . . . . . . 3 . . . . . . Hauler 5 | . . . . 4 . 1 . . . . . . Recycler 4 | . . . . 2 1 1 . . . . . . Operator 3 | . . . . 3 . . . . . . . . Drone 1 | . . . . . 1 . . . . . . . Swarmer 10 | . . . . 7 . . . . . . . 3 Grunt 16 | . 1 . . 6 . 9 . . . . . . Duelist 1 | . . . . . . 1 . . . . . . Sentry 7 | . . . . 6 . 1 . . . . . . Programmer 1 | . . . . . . 1 . . . . . . Best Kill Streak 7 | . 1 . . 7 2 6 . . . . . 3 Combat Bots Only 4 | . 1 . . 4 1 3 . . . . . 3 Max Kills in Single Turn 2 | . 1 . . 2 1 2 . . . . . 1 Gunslinging . | . . . . . . . . . . . . . Exploded 1 | . . . . . . 1 . . . . . . Melee . | . . . . . . . . . . . . . Uniques/NPCs Destroyed . | . . . . . . . . . . . . . Combat | -11 -10 -10 -9 -9 -9 -7 -7 -7 -7 -6 -6 -5 -------- Run | Scr Mat Min Mat Sto Rec Fac Low Low Dat Pro Fac Fac Damage Taken 6167 | . 20 . 120 1075 . 1557 90 . . . . 3305 Core 1354 | . . . . 79 . 225 30 . . . . 1020 Absorbed by Shields . | . . . . . . . . . . . . . Core Remaining (%) 88 | 100 . 100 . . 80 . . . . 63 100 . Volleys Fired 174 | . 2 . 2 86 11 48 . . . . . 25 Largest 3 | . 2 . 1 2 2 3 . . . . . 3 Hottest 103 | . 60 . 100 68 59 103 . . . . . 80 Shots Fired 310 | . 4 . 2 157 20 87 . . . . . 40 Gun 253 | . 4 . . 137 10 62 . . . . . 40 Cannon 38 | . . . . 20 10 8 . . . . . . Launcher 17 | . . . . . . 17 . . . . . . Special 2 | . . . 2 . . . . . . . . . Kinetic 205 | . 2 . . 105 20 43 . . . . . 35 Thermal 18 | . . . 2 . . 11 . . . . . 5 Explosive 17 | . . . . . . 17 . . . . . . Electromagnetic 70 | . 2 . . 52 . 16 . . . . . . Robot Hit Streak 13 | . 3 . . 9 1 12 . . . . . 13 Robot Miss Streak 12 | . . . . 4 12 3 . . . . . 2 Penetration Max 1 | . . . . . . 1 . . . . . . Secondary Targets 3 | . . . . 1 . . . . . . . 2 Max Gunslinging Chain 1 | . . . . 1 . . . . . . . 1 Shots Hit Robots 198 | . 3 . . 102 3 59 . . . . . 31 Core Hits 126 | . 1 . . 56 2 56 . . . . . 11 Critical Kills . | . . . . . . . . . . . . . Critical Parts Destroyed 1 | . . . . . . . . . . . . 1 Critical Strikes 1 | . . . . . . . . . . . . 1 Destroy 1 | . . . . . . . . . . . . 1 Melee Attacks . | . . . . . . . . . . . . . Impact . | . . . . . . . . . . . . . Slashing . | . . . . . . . . . . . . . Piercing . | . . . . . . . . . . . . . Sneak Attacks . | . . . . . . . . . . . . . Combat Hostiles . | . . . . . . . . . . . . . Follow-up Attacks . | . . . . . . . . . . . . . Damage Inflicted 4450 | . 33 . . 1338 74 2395 . . . . . 610 Guns 2343 | . 33 . . 1048 10 642 . . . . . 610 Cannons 392 | . . . . 189 64 139 . . . . . . Explosions 1703 | . . . . 89 . 1614 . . . . . . Melee . | . . . . . . . . . . . . . Ramming 12 | . . . . 12 . . . . . . . . Kinetic 1647 | . 6 . . 697 74 356 . . . . . 514 Thermal 554 | . . . . 89 . 369 . . . . . 96 Explosive 1494 | . . . . . . 1494 . . . . . . Electromagnetic 743 | . 27 . . 540 . 176 . . . . . . Impact . | . . . . . . . . . . . . . Slashing . | . . . . . . . . . . . . . Piercing . | . . . . . . . . . . . . . Highest Corruption 4 | . . . . 4 4 4 4 4 4 4 . 1 Average Corruption 3 | . . . . 3 4 3 4 4 4 4 . 1 Corruption Purged . | . . . . . . . . . . . . . Effects 54 | . . . . 13 20 9 4 2 1 4 . 1 Message Errors 18 | . . . . 4 6 3 . 2 1 1 . 1 Matter Fused 14 | . . . . 3 6 2 2 . . 1 . . Heat Flow Errors 7 | . . . . 2 2 2 . . . 1 . . Energy Discharges 5 | . . . . 2 1 . 2 . . . . . Data Loss (minor) 8 | . . . . 2 3 2 . . . 1 . . Weapon Failures 2 | . . . . . 2 . . . . . . . Overload Shots . | . . . . . . . . . . . . . Overflow Damage 2 | . . . . . . 2 . . . . . . Projectiles . | . . . . . . . . . . . . . Explosions 2 | . . . . . . 2 . . . . . . Melee . | . . . . . . . . . . . . . Knockbacks . | . . . . . . . . . . . . . Impact . | . . . . . . . . . . . . . Kinetic . | . . . . . . . . . . . . . Secondary . | . . . . . . . . . . . . . Self-Inflicted Damage 339 | . . . . 40 . 299 . . . . . . Shots 11 | . . . . 1 . 10 . . . . . . Rammed 3 | . . . . 3 . . . . . . . . Targets Rammed 4 | . . . . 4 . . . . . . . . Kicked . | . . . . . . . . . . . . . Crushed 1 | . . . . 1 . . . . . . . . Highest Temperature 288 | . 32 . 17 288 218 146 6 . . 123 . 117 Average Temperature 65 | . 20 . 8 80 54 35 6 . . 62 . 46 Received Heat Transfer 1630 | . 12 . 27 369 . 318 27 . . . . 877 Siege Activations . | . . . . . . . . . . . . . Robots Corrupted . | . . . . . . . . . . . . . Combat Hostiles . | . . . . . . . . . . . . . Parts Fried 1 | . . . . 1 . . . . . . . . Impact Corruptions . | . . . . . . . . . . . . . Robots Melted . | . . . . . . . . . . . . . Combat Hostiles . | . . . . . . . . . . . . . Parts Melted 2 | . . . . 1 . 1 . . . . . . Heat Transferred 845 | . . . . 150 . 547 . . . . . 148 Parts Sabotaged . | . . . . . . . . . . . . . Parts Stolen . | . . . . . . . . . . . . . Parts Stripped . | . . . . . . . . . . . . . Power Chain Reactions 3 | . . . . 2 . 1 . . . . . . Missiles Intercepted . | . . . . . . . . . . . . . Alert | -11 -10 -10 -9 -9 -9 -7 -7 -7 -7 -6 -6 -5 ------- Run | Scr Mat Min Mat Sto Rec Fac Low Low Dat Pro Fac Fac Peak Influence 1278 | . 36 13 19 402 197 1278 . . . . 235 184 Initial 900 | . . 13 4 7 132 900 . . . . 23 114 Average 349 | . 20 13 15 222 86 1102 . . . . 132 88 Maximum Alert Level 4 | . . . . 2 . 4 . . . . 1 . Low Security (%) 53 | . 100 100 100 41 100 . . . . . 46 100 Level 1 25 | . . . . 56 . . . . . . 53 . Level 2 1 | . . . . 2 . . . . . . . . Level 3 8 | . . . . . . 44 . . . . . . Level 4 11 | . . . . . . 55 . . . . . . Level 5 . | . . . . . . . . . . . . . High Security . | . . . . . . . . . . . . . Max Security . | . . . . . . . . . . . . . Squads Dispatched 10 | . . . . 4 . 5 . . . . 1 . Investigation 1 | . . . . . . . . . . . 1 . Extermination 1 | . . . . . . 1 . . . . . . Reinforcement 8 | . . . . 4 . 4 . . . . . . Assault . | . . . . . . . . . . . . . Garrison . | . . . . . . . . . . . . . Intercept . | . . . . . . . . . . . . . Construction Impeded 1 | . . . . . . 1 . . . . . . Haulers Reinforced 2 | . . . . . . 2 . . . . . . Active Scanning Responses . | . . . . . . . . . . . . . Cargo Convoy Interrupts . | . . . . . . . . . . . . . Stealth | -11 -10 -10 -9 -9 -9 -7 -7 -7 -7 -6 -6 -5 --------- Run | Scr Mat Min Mat Sto Rec Fac Low Low Dat Pro Fac Fac Distress Signals 2 | . 1 . . 1 . . . . . . . . Communications Jammed . | . . . . . . . . . . . . . Distress Signals . | . . . . . . . . . . . . . Times Spotted 102 | . 2 . 1 34 23 18 13 . . . 3 8 Peak Tracking Total 8 | . 2 . 1 4 6 4 8 . . . 3 5 Tactical Retreats 6 | . . . . 1 . . 5 . . . . . Traps | -11 -10 -10 -9 -9 -9 -7 -7 -7 -7 -6 -6 -5 ------- Run | Scr Mat Min Mat Sto Rec Fac Low Low Dat Pro Fac Fac Traps Triggered 3 | . . . . 1 . 1 . . . . . 1 Indirectly . | . . . . . . . . . . . . . Trap Hack Attempts . | . . . . . . . . . . . . . Triggered . | . . . . . . . . . . . . . Disarmed . | . . . . . . . . . . . . . Reprogrammed . | . . . . . . . . . . . . . Reused . | . . . . . . . . . . . . . Traps Extracted . | . . . . . . . . . . . . . Installed . | . . . . . . . . . . . . . Triggered . | . . . . . . . . . . . . . Machines | -11 -10 -10 -9 -9 -9 -7 -7 -7 -7 -6 -6 -5 ---------- Run | Scr Mat Min Mat Sto Rec Fac Low Low Dat Pro Fac Fac Machines Disabled 15 | . . . . 2 1 12 . . . . . . Max in Single Turn 6 | . . . . 1 1 6 . . . . . . Garrison Access 1 | . . . . . . . . . . . 1 . Machines Sabotaged . | . . . . . . . . . . . . . Garrisons Compromised . | . . . . . . . . . . . . . Overloaded Fab Kills . | . . . . . . . . . . . . . Hacking | -11 -10 -10 -9 -9 -9 -7 -7 -7 -7 -6 -6 -5 --------- Run | Scr Mat Min Mat Sto Rec Fac Low Low Dat Pro Fac Fac Machines Accessed 23 | . 1 . . 7 7 1 1 1 3 . 2 . Terminals 13 | . 1 . . 6 4 1 . . . . 1 . Fabricators . | . . . . . . . . . . . . . Repair Stations 1 | . . . . 1 . . . . . . . . Recycling Units 3 | . . . . . 3 . . . . . . . Scanalyzers . | . . . . . . . . . . . . . Garrison Access 1 | . . . . . . . . . . . 1 . Total Hacks 75 | . 6 . . 27 13 2 1 1 20 . 5 . Successful 56 | . 4 . . 18 9 1 1 1 20 . 2 . Failed 19 | . 2 . . 9 4 1 . . . . 3 . Catastrophic 2 | . . . . 1 . . . . . . 1 . Database Lockouts . | . . . . . . . . . . . . . Manual 19 | . 4 . . 6 7 . . . . . 2 . Terminals 40 | . 6 . . 19 10 2 . . . . 3 . Fabricators . | . . . . . . . . . . . . . Repair Stations 8 | . . . . 8 . . . . . . . . Recycling Units 3 | . . . . . 3 . . . . . . . Scanalyzers . | . . . . . . . . . . . . . Garrison Access 2 | . . . . . . . . . . . 2 . Terminal Hacks 39 | . 2 . . 7 6 1 1 1 20 . 1 . Record 2 | . . . . . . . . . 2 . . . Part Schematic 10 | . . . . . . . . . 10 . . . Robot Schematic 5 | . . . . . . . . . 5 . . . Prototype ID Bank 6 | . . . . 1 2 . . . 3 . . . Open Door 4 | . . . . 2 . . 1 1 . . . . Open DSF 1 | . . . . . . 1 . . . . . . Branch Access Points 1 | . 1 . . . . . . . . . . . Alert Level 2 | . . . . 1 1 . . . . . . . Unreport Threat 3 | . . . . . 3 . . . . . . . Locate Traps 4 | . 1 . . 2 . . . . . . 1 . Hauler Manifests 1 | . . . . 1 . . . . . . . . Fabricator Hacks . | . . . . . . . . . . . . . Repair Station Hacks 8 | . . . . 8 . . . . . . . . Scan Component 4 | . . . . 4 . . . . . . . . Repair 4 | . . . . 4 . . . . . . . . Recycling Unit Hacks 3 | . . . . . 3 . . . . . . . Retrieve Components 3 | . . . . . 3 . . . . . . . Scanalyzer . | . . . . . . . . . . . . . Garrison Access Hacks . | . . . . . . . . . . . . . Unauthorized Hacks 6 | . 2 . . 3 . . . . . . 1 . Terminals 5 | . 2 . . 3 . . . . . . . . Track 1 | . 1 . . . . . . . . . . . Botnet 4 | . 1 . . 3 . . . . . . . . Fabricators . | . . . . . . . . . . . . . Repair Stations . | . . . . . . . . . . . . . Recycling Units . | . . . . . . . . . . . . . Scanalyzers . | . . . . . . . . . . . . . Garrison Access 1 | . . . . . . . . . . . 1 . Jam 1 | . . . . . . . . . . . 1 . Data Cores Recovered 1 | . . . . 1 . . . . . . . . Used . | . . . . . . . . . . . . . Hacking Detections 13 | . 1 . . 5 4 1 . . . . 2 . Full Trace Events 1 | . . . . 1 . . . . . . . . Feedback Events . | . . . . . . . . . . . . . Feedback Blocked . | . . . . . . . . . . . . . Robot Schematics Acquired 5 | . . . . . . . . . 5 . . . Robots Built . | . . . . . . . . . . . . . Authchips . | . . . . . . . . . . . . . Time . | . . . . . . . . . . . . . Total Robot Build Rating . | . . . . . . . . . . . . . Part Schematics Acquired 10 | . . . . . . . . . 10 . . . Parts Built . | . . . . . . . . . . . . . Authchips . | . . . . . . . . . . . . . Time . | . . . . . . . . . . . . . Total Part Build Rating . | . . . . . . . . . . . . . Parts Repaired 4 | . . . . 4 . . . . . . . . Time 104 | . . . . 104 . . . . . . . . Parts Recycled . | . . . . . . . . . . . . . Recycled Matter . | . . . . . . . . . . . . . Retrieved Matter . | . . . . . . . . . . . . . Retrieved Components 6 | . . . . . 6 . . . . . . . Parts Scanalyzed . | . . . . . . . . . . . . . Part Schematics Acquired . | . . . . . . . . . . . . . Parts Damaged . | . . . . . . . . . . . . . Bothacking | -11 -10 -10 -9 -9 -9 -7 -7 -7 -7 -6 -6 -5 ------------ Run | Scr Mat Min Mat Sto Rec Fac Low Low Dat Pro Fac Fac Used RIF Installer . | . . . . . . . . . . . . . Robots Hacked . | . . . . . . . . . . . . . Non-combat . | . . . . . . . . . . . . . Combat . | . . . . . . . . . . . . . Robot Hacks Applied . | . . . . . . . . . . . . . Relay Couplers Released . | . . . . . . . . . . . . . Fabnet Peak Effective % . | . . . . . . . . . . . . . Robots Rewired 4 | . . . . . 4 . . . . . . . Allies Hacked . | . . . . . . . . . . . . . Hacks Repelled . | . . . . . . . . . . . . . Allies | -11 -10 -10 -9 -9 -9 -7 -7 -7 -7 -6 -6 -5 -------- Run | Scr Mat Min Mat Sto Rec Fac Low Low Dat Pro Fac Fac Total Allies 5 | . . . . . 4 . . . . 1 . . Largest Group 4 | . . . . . 4 2 . . . 1 1 . Highest-Rated Group 95 | . . . . . 53 35 . . . 95 95 . Highest-Rated Ally 95 | . . . . . 27 27 . . . 95 95 . Total Orders . | . . . . . . . . . . . . . Ally Attacks 39 | . . . . . 29 4 . . . 6 . . Total Damage 225 | . . . . . 100 11 . . . 114 . . Kills 7 | . . . . . 6 . . . . 1 . . Allies Corrupted . | . . . . . . . . . . . . . Allies Melted . | . . . . . . . . . . . . . Intel | -11 -10 -10 -9 -9 -9 -7 -7 -7 -7 -6 -6 -5 ------- Run | Scr Mat Min Mat Sto Rec Fac Low Low Dat Pro Fac Fac Robot Analysis Total . | . . . . . . . . . . . . . Derelict Logs Recovered 6 | . . 1 . . . . 2 2 . 1 . . Drone Launches . | . . . . . . . . . . . . . Drone Recoveries . | . . . . . . . . . . . . . Exploration | -11 -10 -10 -9 -9 -9 -7 -7 -7 -7 -6 -6 -5 ------------- Run | Scr Mat Min Mat Sto Rec Fac Low Low Dat Pro Fac Fac Turns Passed 3757 | . 76 33 37 1447 815 660 114 106 24 245 30 170 Spaces Moved 2957 | 1 50 28 23 597 345 433 400 400 90 386 99 105 Core . | . . . . . . . . . . . . . Treads 995 | . . . . 527 345 106 . . . . . 17 Legs 172 | 1 50 28 23 70 . . . . . . . . Wheels 252 | . . . . . . 239 . . . . . 13 Hover . | . . . . . . . . . . . . . Flight 1538 | . . . . . . 88 400 400 90 386 99 75 Fastest Speed 26 | 120 120 120 120 120 160 26 26 26 26 26 26 26 Average Speed 84 | 120 120 120 120 161 160 99 26 26 26 26 26 58 Slowest Speed 240 | 120 120 120 120 240 160 160 26 26 26 26 26 160 Overloaded Moves . | . . . . . . . . . . . . . Propulsion Burnouts . | . . . . . . . . . . . . . Robots Hopped 4 | . . . . . . . 3 . . . . 1 Cave-ins Triggered . | . . . . . . . . . . . . . Exploration Rate (%) 39 | 1 15 10 3 87 85 13 81 69 75 72 3 4 Regions Visited 12 Branch Regions 7 Pre-discovered Areas 1 | . . . . 1 . . . . . . . . Known Exits Taken 7 | . 1 . . . . 1 1 1 1 1 1 . Unknown Exits Taken 5 | 1 . 1 1 1 1 . . . . . . . Scrap Searched 4 | . . . . . . . . 3 . 1 . . Spaces Dug 2 | . . . 2 . . . . . . . . . Terrain Destroyed 97 | . . . 2 4 2 89 . . . . . . Melee . | . . . . . . . . . . . . . Projectile 6 | . . . 2 1 2 1 . . . . . . AOE 91 | . . . . 3 . 88 . . . . . . Terrain Rammed . | . . . . . . . . . . . . . Walls Destroyed . | . . . . . . . . . . . . . Machines Disabled . | . . . . . . . . . . . . . Actions | -11 -10 -10 -9 -9 -9 -7 -7 -7 -7 -6 -6 -5 --------- Run | Scr Mat Min Mat Sto Rec Fac Low Low Dat Pro Fac Fac Total 3964 | . 63 27 27 949 589 600 409 401 89 529 102 179 Wait 559 | . 8 . . 146 211 38 . . . 142 4 10 Move 2938 | . 49 27 22 596 344 432 394 399 89 385 98 103 Hop 3 | . . . . . . . 2 . . . . 1 Pick Up 71 | . 3 . 1 30 . 24 1 1 . . . 11 Fast Attach 30 | . . . . 23 . 1 . . . 1 . 5 Attach 66 | . . . 1 13 1 29 6 . . . . 16 Detach 19 | . . . . . . 13 3 . . . . 3 Swap 6 | . . . . 5 . 1 . . . . . . Drop 73 | . 1 . 1 46 1 14 3 1 . 1 . 5 Fire 174 | . 2 . 2 86 11 48 . . . . . 25 Melee . | . . . . . . . . . . . . . Ram . | . . . . . . . . . . . . . Kick . | . . . . . . . . . . . . . Crush 4 | . . . . 4 . . . . . . . . Escape Stasis . | . . . . . . . . . . . . . Rewire 21 | . . . . . 21 . . . . . . . Trap . | . . . . . . . . . . . . . Miscellaneous . | . . . . . . . . . . . . . Route ------- -11/Scrapyard -10/Materials -10/Mines -9/Materials -9/Storage -9/Recycling -7/Factory -7/Lower Caves -7/Lower Caves (discovered 2 exits: *Fac / *Dat) -7/Data Miner -6/Proximity Caves -6/Factory -5/Factory History --------- Turn | Location | Event 1 | -11/Scrapyard | Discovered new exit (range 0) 1 | -11/Scrapyard | Entered Materials 42 | -10/Materials | Identified exit to Mines 77 | -10/Materials | Entered Mines 100 | -10/Mines | Learned Materials trap positions 100 | -10/Mines | Discovered new exit (range 8) 110 | -10/Mines | Entered Materials 110 | -9/Materials | Evolved 2 slots: Utility x2 111 | -9/Materials | Loaded intel: 17 trap records 118 | -9/Materials | Discovered new exit (range 15) 147 | -9/Materials | Entered Storage 212 | -9/Storage | Repaired Mining Laser 239 | -9/Storage | Repaired EM Pulse Gun 266 | -9/Storage | Repaired Lgt. Assault Rifle 294 | -9/Storage | Repaired Aluminum Leg 321 | -9/Storage | Build established: Mutant 765 | -9/Storage | Learned location of Armory (-4) 1587 | -9/Storage | Used back door to open Recycling access 1587 | -9/Storage | Discovered new exit (range 5) 1594 | -9/Storage | Entered Recycling 1638 | -9/Recycling | Spotter reported a threat 1657 | -9/Recycling | Spotter reported a threat 1657 | -9/Recycling | Spotter reported a threat 1691 | -9/Recycling | Spotter reported a threat 1819 | -9/Recycling | Spotter reported a threat 1836 | -9/Recycling | Spotter reported a threat 1855 | -9/Recycling | Spotter reported a threat 1857 | -9/Recycling | Spotter reported a threat 1865 | -9/Recycling | Spotter reported a threat 1872 | -9/Recycling | Spotter reported a threat 1889 | -9/Recycling | Spotter reported a threat 1898 | -9/Recycling | Spotter reported a threat 1908 | -9/Recycling | Spotter reported a threat 1910 | -9/Recycling | Spotter reported a threat 1914 | -9/Recycling | Spotter reported a threat 1917 | -9/Recycling | Spotter reported a threat 1925 | -9/Recycling | Spotter reported a threat 1942 | -9/Recycling | Spotter reported a threat 1961 | -9/Recycling | Spotter reported a threat 1963 | -9/Recycling | Spotter reported a threat 1991 | -9/Recycling | Spotter reported a threat 1991 | -9/Recycling | Spotter reported a threat 2009 | -9/Recycling | Spotter reported a threat 2014 | -9/Recycling | Spotter reported a threat 2044 | -9/Recycling | Spotter reported a threat 2047 | -9/Recycling | Spotter reported a threat 2062 | -9/Recycling | Spotter reported a threat 2063 | -9/Recycling | Spotter reported a threat 2067 | -9/Recycling | Spotter reported a threat 2120 | -9/Recycling | Spotter reported a threat 2122 | -9/Recycling | Spotter reported a threat 2146 | -9/Recycling | Spotter reported a threat 2162 | -9/Recycling | Discovered new exit (range 14) 2173 | -9/Recycling | Spotter reported a threat 2175 | -9/Recycling | Spotter reported a threat 2199 | -9/Recycling | Spotter reported a threat 2200 | -9/Recycling | Spotter reported a threat 2302 | -9/Recycling | Spotter reported a threat 2314 | -9/Recycling | Spotter reported a threat 2409 | -9/Recycling | Entered Factory 2409 | -7/Factory | Accompanied by 2 allies 2409 | -7/Factory | Evolved 4 slots: Propulsion x2, Utility x1, Weapon x1 2780 | -7/Factory | Lost 3 parts (1u2w) 2965 | -7/Factory | Discovered new exit (range 5) 3018 | -7/Factory | Lost 3 parts (1p2w) 3037 | -7/Factory | Identified exit to Lower Caves 3069 | -7/Factory | Entered Lower Caves 3081 | -7/Lower Caves | Learned Factory emergency access door positions 3116 | -7/Lower Caves | Learned Factory security intel 3174 | -7/Lower Caves | Found Prototype Device 3182 | -7/Lower Caves | Discovered new exit (range 6) 3183 | -7/Lower Caves | Identified exit to Lower Caves 3183 | -7/Lower Caves | Entered another Lower Caves area 3187 | -7/Lower Caves | Discovered new exit (range 9) 3283 | -7/Lower Caves | Learned Factory garrison access intel 3285 | -7/Lower Caves | Discovered new exit (range 14) 3288 | -7/Lower Caves | Identified exit to Data Miner 3289 | -7/Lower Caves | Entered Data Miner 3289 | -7/Data Miner | Discovered new exit (range 6) 3293 | -7/Data Miner | Met Data Miner 3305 | -7/Data Miner | Received God Mode back door access code from Data Miner 3312 | -7/Data Miner | Identified exit to Proximity Caves 3313 | -7/Data Miner | Entered Proximity Caves 3325 | -6/Proximity Caves | Identified exit to Factory 3376 | -6/Proximity Caves | Escorted by Enhanced Grunt 3481 | -6/Proximity Caves | Build established: Scavenger-Sprinter 3523 | -6/Proximity Caves | Received a Behemoth hack from an annoying Tinkerer 3558 | -6/Proximity Caves | Entered Factory 3558 | -6/Factory | Accompanied by 1 ally 3558 | -6/Factory | Evolved 2 slots: Utility x2 3561 | -6/Factory | Loaded intel: 4 garrison access locations 3569 | -6/Factory | Discovered new exit (range 15) 3588 | -6/Factory | Identified exit to Factory 3588 | -6/Factory | Entered another Factory area 3588 | -5/Factory | Evolved 2 slots: Utility x1, Weapon x1 3598 | -5/Factory | Spotted B-75 Beast 3689 | -5/Factory | Core integrity fell below 50% 3706 | -5/Factory | Core integrity fell below 20% 3758 | -5/Factory | Destroyed by G-67 Veteran with Plasma Rifle Last Messages --------------- 03694_ Cld. VTOL Module destroyed. 03697_ Critical hit (Burn: +37). 03698_ Cld. VTOL Module destroyed. 03699_ Dropped Med. Storage Unit. 03699_ Knocked back. 03701_ Dropped Prototype Device. 03702_ Acquired Med. Treads. 03705_ Cesium-ion Thruster destroyed. 03706_ Acquired Med. Treads. 03711_ Dropped Cld. VTOL Module. 03717_ Acquired Force Rifle. 03718_ Lgt. Nuclear Core destroyed. 03720_ Acquired Force Rifle. 03732_ G-50 Soldier knocked back. 03745_ Med. Treads destroyed. 03757_ Triggered Tiamat Bomb Trap. 03757_ An explosion rips through the floor. 03757_ Med. Treads destroyed. 03757_ Force Rifle destroyed. 03757_ Adv. Visual Processing Unit destroyed. Map ----- +----------------------------------------------------+ | | | | | | | | | | | | | ????????????????????????????????????? | | ????????????????????????????????????? | | ????????????????????????????????????? | | ????????????????????????????????????? | | ????????????????????????????????????? | | ????????????????????????????????????? | | ????????????????????????????????????? | | ????????????????????????????????????? | | ????????????????????????????????????? | | ????????????????????????????????????? | | ????????????????????????????????????? | | ??????????####+####?????????????????? | | ########### +?????????????????? | | # # #?????????????????? | | # # #?????????????????? | | # ! + +?????????????????? | | # #?????????????????? | | # ######????????????? | | # #????????????? | | # @ #????????????? | | # [[ #????????????? | | # [ g [ #????????????? | | # g #????????????? | | # # = #????????????? | | # %# == #######??????? | | # = g #^ == ???? | | #% ! # ???? | | # !! !+ = "T" ???? | | # !! # ?????? | | ####;;;""## " " " " ????? | | " % # " " " " #?????? | | # ; %"" " " " " ????????? | | # ; "" " " " ??????????? | | # ;BB F" " " " "?????????? | | # % ;BB "" " " " "? +?????? | | # %= " " " " " #?????? | | # %% "% " " " " #?????? | | # """ # # " " " " #?????? | | # % %" # # # ??????? | | "=%* ### #### ???????? | | "%= #?# #??# ????????? | | # #?# #??# ???????? | | " #?# #??# ! ????????? | | ###########?# #??# ???????????? | +----------------------------------------------------+ Best States ------------- Heat Dissipation 48 Energy Generation 16 Energy Capacity 290 Matter Stores 300 Matter Capacity 300 Sight Range 20 Terrain Scan Density 10 Armor Coverage 675 Resistance: KI 25 Evasion (%) 64 Target Analysis 5 Recoil Reduction 4 Offensive Hacking 20 Item Schematics ----------------- Combat Drone Bay | -7/Data Miner | Free Lgt. Regenerative Plating | -7/Data Miner | Free Thermal Defense Suite | -7/Data Miner | Free Imp. Heavy Laser | -7/Data Miner | Free Cld. Aerolev Unit | -7/Data Miner | Free Linear Gravjet | -7/Data Miner | Free Adv. Plasma Cannon | -7/Data Miner | Free Imp. Kinecellerator | -7/Data Miner | Free Mni. Drone Bay | -7/Data Miner | Free Enh. Gauss Cannon | -7/Data Miner | Free Robot Schematics ------------------ R-10 Processor | -7/Data Miner | Free Y-54 Guardian | -7/Data Miner | Free G-47 Trooper | -7/Data Miner | Free S-27 Virus | -7/Data Miner | Free G-50 Soldier | -7/Data Miner | Free Fabricated ------------ Nothing Alien Tech Used ----------------- None Achievements -------------- None Challenges ------------ None Game ------ Seed BombardmentThermalFirepult Manual? 0 Play Time 01:03:21 Cumulative 94.5 hours Start 2021.11.12 @ 22:07:49 End 2021.11.12 @ 23:20:07 Sessions 1 Manual Loads 0 Difficulty Rogue Special Mode None Game No. 37 Rogue 37 Adventurer 0 Explorer 0 Win Type - Total 1 Types 1/0/0/0/0/0/0/0/0 Lore% 30 Gallery% 52 Achievement% 39 Wizard Run 0 Options --------- ASCII 0 Keyboard 0 Movement Mouse Keybinds 0 Fullscreen 1 Font 18/Terminus Map View 76x50 Tactical HUD 1 Map Filters NONE Filters NONE Steam 1 RUN: a838eeb2-2aca-46f9-8e8e-48a70d5217ac